bitfinex/quotes_ETHUSD_20251201
["timestamp","ask_amount","ask_price","bid_price","bid_amount"]
[1764554415932,1.55526046,2853.5,2853.4,0.001]
[1764554416132,2.37746204,2853.5,2853.4,0.001]
[1764554416329,5.88193023,2853.5,2853.4,0.001]
[1764554416734,4.58376388,2853.5,2853.4,0.001]
[1764554416963,5.06316388,2853.5,2853.4,0.001]
[1764554417163,5.53166388,2853.5,2853.4,0.001]
[1764554417331,5.06316388,2853.5,2853.4,0.001]
[1764554417664,4.58376388,2853.5,2853.4,0.001]
[1764554417960,4.2300623,2853.5,2853.4,0.001]
[1764554418333,3.50424099,2853.7,2853.4,0.4706]
[1764554418334,0.72559411,2853.6,2853.4,0.4706]
[1764554418533,0.72559411,2853.5,2853.4,0.4706]
[1764554418968,0.72559411,2853.5,2853.4,0.001]
[1764554419338,0.002,2854.1,2853.4,9.22616566]
[1764554419632,0.002,2854.1,2854.0,0.4696]
[1764554419827,0.002,2854.1,2854.0,0.6936]
[1764554420058,0.002,2854.1,2854.0,1.1762]
[1764554420463,0.002,2854.1,2854.0,0.9522]
[1764554420664,0.002,2854.1,2854.0,0.4696]
[1764554423455,0.4954,2854.1,2853.4,3.99017561]
[1764554423649,0.4954,2854.1,2853.5,0.223]
[1764554424083,0.002,2854.1,2854.0,0.4576]
[1764554424283,0.002,2854.1,2853.5,0.7076]
[1764554424491,0.002,2854.1,2853.6,0.4718]
[1764554425985,0.002,2854.1,2854.0,0.4817]
[1764554426487,0.002,2854.1,2854.0,0.9535]
[1764554426908,0.002,2854.1,2854.0,0.4817]
[1764554428188,0.002,2854.1,2853.8,0.4718]
[1764554428363,0.002,2854.1,2853.7,0.223]
[1764554428574,0.002,2854.1,2854.0,0.4817]
[1764554428777,0.002,2854.1,2853.7,0.223]
[1764554429097,0.002,2854.1,2853.7,0.6948]
[1764554429295,0.002,2854.1,2853.7,1.46866012]
[1764554430063,0.002,2854.1,2854.0,0.4817]
[1764554430588,0.002,2854.1,2854.0,0.9535]
[1764554430754,0.002,2854.1,2854.0,0.4817]
[1764554431693,0.002,2854.1,2854.0,3.98555423]
[1764554431862,0.002,2854.1,2854.0,1.70246493]
[1764554432057,0.002,2854.1,2853.4,8.05096566]
[1764554432258,0.35026635,2854.0,2853.5,0.223]
[1764554432460,0.35026635,2854.0,2853.5,3.72745416]
[1764554432689,0.9499,2854.1,2853.6,0.4718]
[1764554432690,0.002,2854.1,2853.6,0.4718]
[1764554433092,3.50574837,2854.1,2853.6,0.4718]
[1764554433554,0.4833,2854.0,2853.4,0.001]
[1764554433762,0.002,2854.1,2853.4,0.001]
[1764554433987,0.002,2854.1,2854.0,0.4817]
[1764554434684,0.002,2854.1,2854.0,0.9535]
[1764554436281,0.002,2854.1,2854.0,0.4817]
[1764554436680,0.002,2854.1,2854.0,0.9535]
[1764554436867,0.002,2854.1,2854.0,0.40208087]
[1764554437192,0.9499,2854.1,2853.8,0.223]
[1764554437491,0.9499,2854.1,2853.6,0.223]
[1764554437788,0.4667,2854.1,2853.6,0.223]
[1764554437982,0.4667,2854.1,2853.6,0.6948]
[1764554438899,4.45368765,2854.1,2853.6,0.223]
[1764554439066,3.97048765,2854.1,2853.6,0.223]
[1764554439270,0.4667,2854.1,2853.6,4.19910287]
[1764554439598,0.4667,2854.1,2853.6,4.96956934]
[1764554439781,3.97044671,2854.1,2853.6,4.49776934]
[1764554439980,3.97044671,2854.1,2853.6,0.77046647]
[1764554440189,4.45364671,2854.1,2853.5,0.223]
[1764554440385,7.95739342,2854.1,2853.5,0.223]
[1764554440973,4.45364671,2854.1,2853.5,3.72745924]
[1764554442030,0.4667,2854.1,2853.5,4.19925924]
[1764554442304,0.002,2854.1,2854.0,0.4817]
[1764554442776,3.97043476,2854.1,2853.6,0.50684345]
[1764554442971,3.97043476,2854.1,2853.6,0.45857094]
[1764554443193,4.45363476,2854.1,2853.6,0.03504345]
[1764554443595,0.4832,2854.0,2853.5,0.223]
[1764554444319,0.83346635,2854.0,2853.5,0.223]
[1764554444703,0.35026635,2854.0,2853.5,0.223]
[1764554444917,0.35026635,2854.0,2853.5,1.41812564]
[1764554445114,4.3374404,2854.0,2853.5,0.223]
[1764554445902,0.35026635,2854.0,2853.5,4.19922619]
[1764554446308,3.8560795,2854.1,2853.5,4.19922619]
[1764554446510,7.35988816,2854.1,2853.5,0.6948]
[1764554446704,3.85607501,2854.1,2853.5,0.6948]
[1764554446905,4.33937501,2854.1,2853.5,4.19925888]
[1764554447446,4.33937501,2854.1,2853.5,4.23430356]
[1764554447447,3.98910866,2854.1,2853.5,4.23430356]
[1764554448449,3.95787466,2854.1,2853.5,5.00829093]
[1764554448948,3.50352777,2854.3,2853.5,8.51275912]
[1764554449137,0.72759411,2854.4,2854.2,0.4817]
[1764554449298,0.002,2854.4,2854.2,0.4817]
[1764554450009,0.4647,2854.3,2853.9,0.6948]
[1764554450214,0.4647,2854.3,2853.9,0.64289804]
[1764554450425,0.4647,2854.3,2853.9,4.14685105]
[1764554452133,3.50536322,2854.4,2853.5,4.27841078]
[1764554452313,0.0046,2853.8,2853.5,4.50141078]
[1764554452513,0.4833,2854.2,2853.5,4.50141078]
[1764554452514,0.4833,2854.2,2853.5,3.72742341]
[1764554453806,0.4833,2854.2,2853.5,7.2318916]
[1764554454117,4.70897929,2854.3,2853.5,3.50442341]
[1764554454441,0.4798,2854.2,2853.6,0.223]
[1764554454606,0.4798,2854.2,2853.7,0.37274234]
[1764554455027,0.4798,2854.2,2853.6,0.223]
[1764554455028,0.4682,2853.8,2853.6,0.223]
[1764554455537,0.4682,2853.8,2853.4,0.001]
[1764554455738,0.35026635,2854.0,2853.5,0.223]
[1764554455944,3.85422374,2854.0,2853.5,0.223]
[1764554456242,0.35026635,2854.0,2853.5,3.72744758]
[1764554456412,0.4798,2854.0,2853.6,0.37284476]
[1764554456733,0.83006635,2854.0,2853.5,0.223]
[1764554457105,0.4798,2853.9,2853.5,0.223]
[1764554457418,0.35026635,2854.0,2853.4,3.50558625]
[1764554457623,0.4798,2853.9,2853.4,3.50558625]
[1764554457838,0.4798,2853.9,2853.4,0.224]
[1764554458041,0.4682,2853.5,2853.4,0.001]
[1764554458529,1.29816635,2853.5,2853.4,0.001]
[1764554458899,0.4682,2853.5,2853.4,0.001]
[1764554459116,1.29816635,2853.5,2853.4,0.001]
[1764554460149,4.80263454,2853.5,2853.4,0.001]
[1764554462606,6.76443069,2853.5,2853.4,0.001]
[1764554462911,0.75577035,2853.3,2853.2,0.001]
[1764554463111,0.75957035,2853.3,2853.2,0.001]
[1764554463418,0.35026635,2853.2,2853.1,0.001]
[1764554463618,1.51546635,2853.2,2853.1,0.001]
[1764554463936,1.7801228,2853.2,2853.1,0.001]
[1764554464639,6.01055358,2853.2,2853.1,0.001]
[1764554465419,6.41605758,2853.2,2853.1,0.001]
[1764554465618,14.56602324,2853.2,2853.1,0.001]
[1764554465823,6.51605758,2853.2,2853.1,0.001]
[1764554466019,6.06579123,2853.2,2853.1,0.001]
[1764554466215,6.41605758,2853.2,2853.1,0.001]
[1764554466823,6.19305758,2853.2,2853.1,0.001]
[1764554467043,6.41605758,2853.2,2853.1,0.001]
[1764554468314,6.06579123,2853.2,2853.1,0.001]
[1764554468649,6.41605758,2853.2,2853.1,0.001]
[1764554471338,6.06579123,2853.2,2853.1,0.001]
[1764554471636,6.41605758,2853.2,2853.1,0.001]
[1764554472092,6.51605758,2853.2,2853.1,0.001]
[1764554472373,6.06579123,2853.2,2853.1,0.001]
[1764554472655,6.41605758,2853.2,2853.1,0.001]
[1764554474123,6.51605758,2853.2,2853.1,0.001]
[1764554474446,6.16579123,2853.2,2853.1,0.001]
[1764554474643,6.51605758,2853.2,2853.1,0.001]
[1764554475247,6.51605758,2853.2,2852.6,1e-08]
[1764554475248,6.84157035,2852.7,2852.6,1e-08]
[1764554475436,4.194504,2852.1,2852.0,0.001]
[1764554475633,0.405504,2852.0,2851.8,0.001]
[1764554475868,1.81597035,2852.0,2851.8,0.001]
[1764554476071,1.93897035,2852.0,2851.8,0.001]
[1764554476373,2.13286739,2852.0,2851.8,0.001]
[1764554476736,0.57326635,2852.0,2851.8,0.001]
[1764554477435,0.1834,2852.7,2851.9,0.9137]
[1764554477639,0.35026635,2852.6,2851.9,0.9137]
[1764554477863,0.223,2852.5,2852.0,0.4508]
[1764554478343,0.35026635,2852.3,2851.9,0.001]
[1764554478547,0.35026635,2852.4,2851.9,0.4518]
[1764554478747,0.223,2852.5,2851.9,0.4518]
[1764554479055,0.4934,2852.0,2851.9,0.001]
[1764554479247,0.35026635,2852.0,2851.9,0.001]
[1764554479599,3.85657771,2852.0,2851.9,0.001]
[1764554480478,3.50631136,2852.0,2851.9,0.4629]
[1764554480670,1.9319956,2851.9,2851.8,0.001]
[1764554480835,2.14982925,2851.9,2851.8,0.001]
[1764554481039,2.5000956,2851.9,2851.8,0.001]
[1764554481568,6.0065299,2851.9,2851.8,0.001]
[1764554481773,6.1065299,2851.9,2851.8,0.001]
[1764554481979,9.7955299,2851.9,2851.5,0.001]
[1764554482271,10.68041045,2851.6,2851.5,0.001]
[1764554482573,1.47597035,2851.6,2851.5,0.001]
[1764554482768,1.94077035,2851.6,2851.5,0.001]
[1764554483565,6.17316765,2851.6,2851.5,0.001]
[1764554483766,5.70836765,2851.6,2851.5,0.001]
[1764554483976,6.05899879,2851.6,2851.5,0.001]
[1764554484273,5.15629479,2851.6,2851.5,0.001]
[1764554485291,5.28832844,2851.6,2851.5,0.001]
[1764554485492,5.63859479,2851.6,2851.5,0.001]
[1764554486165,4.58302844,2851.6,2851.5,0.001]
[1764554486361,4.58266365,2851.6,2851.5,0.001]
[1764554486575,5.06496365,2851.6,2851.5,0.001]
[1764554487680,5.56246365,2851.6,2851.5,0.001]
[1764554488271,5.06496365,2851.6,2851.5,0.001]
[1764554488494,5.56246365,2851.6,2851.5,0.001]
[1764554489279,5.96796765,2851.6,2851.5,0.001]
[1764554489785,6.06796765,2851.6,2851.5,0.001]
[1764554490999,5.6177013,2851.6,2851.5,0.001]
[1764554491185,5.47046765,2851.6,2851.5,0.001]
[1764554491390,4.2323973,2851.6,2851.5,0.4668]
[1764554491587,4.80566365,2851.6,2851.5,0.4668]
[1764554491794,4.80566365,2851.6,2851.5,0.001]
[1764554492169,4.4553973,2851.6,2851.5,0.001]
[1764554492805,4.4553973,2851.6,2851.5,0.4668]
[1764554493174,4.4553973,2851.6,2851.5,0.001]
[1764554493175,4.80566365,2851.6,2851.5,0.001]
[1764554493367,5.78546365,2851.6,2851.5,0.001]
[1764554493598,4.4553973,2851.6,2851.5,0.001]
[1764554493809,4.80566365,2851.6,2851.5,0.001]
[1764554494804,4.4553973,2851.6,2851.5,0.001]
[1764554495103,4.80566365,2851.6,2851.5,0.001]
[1764554495512,6.19096765,2851.6,2851.5,0.001]
[1764554495873,6.29096765,2851.6,2851.5,0.001]
[1764554496199,5.6177013,2851.6,2851.5,0.001]
[1764554496400,6.19196765,2851.6,2851.5,0.001]
[1764554498398,14.89381364,2851.6,2851.5,0.001]
[1764554499306,0.35026635,2851.0,2849.5,0.351]
[1764554499503,0.25909033,2850.9,2849.6,0.38609264]
[1764554499806,3.50791033,2850.7,2849.6,7.05362154]
[1764554499991,0.03509033,2850.7,2849.7,0.405504]
[1764554500196,0.57426635,2851.1,2850.6,0.1722]
[1764554500512,0.03509033,2851.0,2850.6,0.1722]
[1764554500719,0.03509033,2851.0,2849.8,1.09332974]
[1764554500885,0.03509033,2851.0,2850.9,0.1722]
[1764554501407,0.03509033,2851.0,2850.9,0.3444]
[1764554501582,0.002,2851.8,2850.9,0.1722]
[1764554501783,10.70287852,2853.3,2851.7,0.1722]
[1764554501998,0.002,2852.1,2851.8,0.1702]
[1764554502389,0.002,2852.1,2852.0,0.1702]
[1764554502778,0.002,2852.1,2852.0,0.3404]
[1764554503679,0.002,2852.1,2852.0,3.84671136]
[1764554503905,0.002,2852.4,2852.1,0.351]
[1764554504111,0.002,2852.4,2852.3,0.3404]
[1764554504478,0.002,2853.2,2852.4,0.405504]
[1764554504678,0.002,2853.2,2853.1,0.1702]
[1764554505207,0.002,2853.2,2853.1,0.3404]
[1764554505514,0.002,2853.2,2853.1,0.1702]
[1764554505677,0.002,2853.2,2852.4,0.405504]
[1764554505678,0.7029355,2853.2,2852.4,0.1702]
[1764554506004,0.002,2853.2,2852.5,0.1702]
[1764554506515,0.002,2853.2,2852.3,0.1702]
[1764554506851,0.35026635,2853.0,2852.3,0.3404]
[1764554507103,0.35026635,2852.8,2852.3,0.3404]
[1764554507512,0.35026635,2852.8,2852.7,0.1702]
[1764554507721,3.85559444,2852.8,2852.7,0.1702]
[1764554508484,3.85559444,2852.8,2852.4,0.1702]
[1764554508920,0.35026635,2852.8,2852.3,0.1702]
[1764554509108,3.85562777,2852.8,2852.3,0.1702]
[1764554509307,7.36098919,2852.8,2852.3,0.1702]
[1764554509817,0.72559411,2852.7,2852.0,0.1702]
[1764554510114,0.35026635,2852.5,2852.0,0.1702]
[1764554510495,0.35026635,2852.5,2852.0,0.3404]
[1764554511024,0.35026635,2852.5,2852.0,0.1702]
[1764554511182,0.72559411,2852.7,2852.4,0.1702]
[1764554511710,0.72559411,2852.7,2852.6,0.1702]
[1764554512022,4.23104508,2852.7,2852.6,0.1702]
[1764554512321,4.23104508,2852.7,2852.1,0.1702]
[1764554512510,4.23104508,2852.7,2852.6,0.1702]
[1764554512880,0.224,2853.0,2852.6,0.1702]
[1764554512881,0.35026635,2852.9,2852.6,0.1702]
[1764554513084,0.72559411,2853.0,2852.6,0.1702]
[1764554513085,0.72559411,2853.0,2852.6,0.3404]
[1764554513387,0.72559411,2853.0,2852.8,0.1702]
[1764554513785,3.50520522,2852.9,2852.8,0.1702]
[1764554514105,3.50520522,2852.9,2852.1,0.38466772]
[1764554514106,7.36067679,2852.9,2852.3,0.1702]
[1764554514425,7.36067679,2852.9,2852.3,0.57630012]
[1764554514789,7.36067679,2852.9,2852.3,0.1702]
[1764554515998,7.36067679,2852.9,2852.1,0.38466772]
[1764554515999,0.72559411,2852.8,2852.1,0.38466772]
[1764554516220,0.35026635,2852.7,2852.0,0.3942]
[1764554516426,0.35026635,2852.7,2852.0,0.5644]
[1764554517717,0.35026635,2852.7,2852.0,4.07070787]
[1764554518028,3.50545097,2852.7,2852.6,0.1702]
[1764554518525,0.35026635,2852.6,2852.1,0.1702]
[1764554518723,0.35026635,2852.6,2852.2,0.03506065]
[1764554518895,3.50545097,2852.7,2852.5,0.1702]
[1764554519097,3.85571732,2852.7,2852.5,0.1702]
[1764554519291,4.20416334,2853.2,2852.5,0.1702]
[1764554519292,0.002,2853.2,2852.6,0.1702]
[1764554519512,4.23252312,2853.2,2853.1,0.1702]
[1764554519796,5.35651359,2853.2,2852.5,0.1702]
[1764554520013,11.59264749,2853.2,2852.1,0.1702]
[1764554520221,0.002,2853.1,2852.2,0.224]
[1764554520526,0.35026635,2853.0,2852.2,0.224]
[1764554520830,0.35026635,2853.0,2852.3,0.1702]
[1764554521037,0.002,2853.1,2852.0,0.1712]
[1764554521038,0.35026635,2852.7,2852.0,0.1712]
[1764554521252,0.35026635,2852.6,2852.0,0.1712]
[1764554521446,0.1911,2852.9,2852.1,0.1702]
[1764554521647,0.35026635,2852.8,2852.2,0.03506065]
[1764554521862,0.35026635,2852.8,2852.1,0.1702]
[1764554522027,7.01090194,2852.7,2852.1,0.1702]
[1764554522348,4.2606778,2852.7,2852.1,0.1702]
[1764554522557,0.75522683,2852.7,2852.1,0.20526188]
[1764554522704,0.1911,2852.9,2852.6,0.1702]
[1764554522705,0.35026635,2852.9,2852.6,0.1702]
[1764554522909,4.45656343,2853.1,2852.8,0.1702]
[1764554523145,7.96153275,2853.1,2852.8,0.1702]
[1764554523343,7.96153275,2853.1,2852.0,7.18381651]
[1764554523344,7.96153275,2853.1,2852.3,0.1702]
[1764554523640,7.96153275,2853.1,2852.4,0.03504249]
[1764554524007,0.002,2853.1,2853.0,0.1702]
[1764554524213,0.72759411,2853.1,2853.0,0.1702]
[1764554524412,0.002,2853.1,2853.0,0.1702]
[1764554524847,0.4913,2853.1,2852.4,0.224]
[1764554525010,3.99625951,2853.1,2852.4,0.224]
[1764554525335,7.50121902,2853.1,2852.4,0.224]
[1764554525718,3.50695951,2853.1,2852.5,0.1702]
[1764554525930,3.50695951,2853.1,2853.0,0.1702]
[1764554526124,0.002,2853.1,2853.0,0.1702]
[1764554526437,0.002,2853.1,2852.4,3.89996209]
[1764554526643,0.002,2853.1,2852.5,0.38999621]
[1764554526806,0.002,2853.1,2852.5,0.56019621]
[1764554527010,0.002,2853.1,2852.6,0.03505573]
[1764554527210,0.002,2853.1,2852.5,0.56019621]
[1764554527447,0.002,2853.1,2852.5,0.1702]
[1764554528744,0.35026635,2853.0,2852.2,0.1702]
[1764554529048,0.35026635,2853.0,2852.3,0.224]
[1764554529248,0.35026635,2853.0,2852.0,0.1712]
[1764554529249,0.1911,2852.9,2852.0,0.1712]
[1764554529429,0.35026635,2852.4,2852.0,0.1712]
[1764554530116,3.85616723,2852.4,2852.0,0.1712]
[1764554530737,0.35026635,2852.4,2852.0,0.1712]
[1764554531246,3.85609807,2852.4,2852.0,0.1712]
[1764554531948,0.35026635,2852.4,2852.0,0.1712]
[1764554532169,3.85609062,2852.4,2852.0,0.1712]
[1764554532347,0.35026635,2852.4,2852.0,0.1712]
[1764554532720,3.85611903,2852.4,2852.0,0.1712]
[1764554533347,3.85587264,2852.6,2852.3,0.1702]
[1764554533538,3.85587264,2852.6,2852.5,0.1702]
[1764554533739,3.72848951,2852.7,2852.1,0.03506188]
[1764554534141,0.223,2852.7,2852.1,0.03506188]
[1764554534344,7.23396398,2852.7,2852.1,0.57651444]
[1764554534547,7.23396398,2852.7,2852.1,0.1702]
[1764554534548,3.72848199,2852.7,2852.1,0.1702]
[1764554534950,0.002,2853.1,2852.1,0.1702]
[1764554534951,3.50697205,2853.1,2852.6,0.1702]
[1764554535130,0.002,2853.1,2852.7,0.3404]
[1764554535327,0.002,2853.1,2853.0,0.1702]
[1764554535750,0.002,2853.1,2853.0,0.3404]
[1764554535920,0.002,2853.1,2853.0,0.1702]
[1764554536127,0.002,2853.1,2852.7,0.223]
[1764554536951,0.002,2853.1,2852.7,0.59585416]
[1764554537254,0.4733,2853.0,2852.4,0.001]
[1764554537429,0.35226635,2853.1,2852.4,3.72981754]
[1764554537631,0.35226635,2853.1,2852.4,0.224]
[1764554537830,0.35226635,2853.1,2852.4,3.72981966]
[1764554537831,0.002,2853.1,2852.4,3.72981966]
[1764554538056,0.002,2853.1,2852.5,0.37298197]
[1764554538422,0.002,2853.1,2852.4,3.9000095]
[1764554538619,0.002,2853.1,2852.5,0.03505696]
[1764554538823,0.002,2853.1,2853.0,0.1702]
[1764554539039,0.002,2853.1,2852.6,0.1702]
[1764554539243,0.002,2853.1,2852.4,3.7298095]
[1764554539525,0.002,2853.1,2852.5,0.72357209]
[1764554539723,0.002,2853.1,2852.5,0.1702]
[1764554540228,0.6804,2852.6,2852.4,0.001]
[1764554540663,4.18601751,2852.6,2852.4,0.001]
[1764554540965,3.50548155,2852.7,2852.4,0.001]
[1764554542745,4.16962641,2852.9,2852.4,0.001]
[1764554542945,0.4867,2852.8,2852.4,0.001]
[1764554543937,7.6537421,2852.9,2852.4,0.001]
[1764554544138,7.68825282,2852.9,2852.4,0.001]
[1764554545367,0.4867,2852.8,2852.4,0.001]
[1764554545766,0.4894,2852.5,2852.4,0.001]
[1764554546146,0.4867,2852.7,2852.4,0.001]
[1764554546347,0.35026635,2852.7,2852.4,0.001]
[1764554547154,4.23096516,2852.8,2852.4,0.001]
[1764554547355,7.73633621,2852.8,2852.4,0.001]
[1764554548374,4.23096516,2852.8,2852.4,0.001]
[1764554548572,0.1934,2852.9,2852.4,0.001]
[1764554548775,0.80836635,2852.5,2852.4,0.001]
[1764554548976,0.35026635,2852.2,2852.1,0.001]
[1764554549174,5.26302595,2852.2,2852.1,0.001]
[1764554549468,5.26302595,2852.2,2852.0,0.001]
[1764554549469,0.35026635,2851.9,2851.2,0.001]
[1764554549647,1.00176635,2851.9,2851.2,0.001]
[1764554549849,0.35026635,2851.8,2851.2,0.001]
[1764554550063,1.50626635,2851.8,2851.2,0.001]
[1764554551261,5.01282361,2851.8,2851.2,0.001]
[1764554551465,5.73841772,2851.8,2851.2,0.001]
[1764554554711,5.73841772,2851.8,2851.6,0.001]
[1764554555246,0.1934,2852.4,2851.7,0.1752]
[1764554555455,0.35026635,2852.2,2851.7,0.001]
[1764554555689,0.4581,2851.8,2851.7,0.001]
[1764554555994,0.35026635,2851.9,2851.7,0.001]
[1764554557180,0.933,2851.8,2851.7,0.001]
[1764554557377,2.00886046,2851.8,2851.7,0.001]
[1764554557579,5.51541772,2851.8,2851.7,0.001]
[1764554557781,5.97045018,2851.8,2851.7,0.001]
[1764554559265,6.19445018,2851.8,2851.7,0.001]
[1764554560601,5.84418383,2851.8,2851.7,0.001]
[1764554560897,6.19445018,2851.8,2851.7,0.001]
[1764554561302,3.50631887,2852.0,2851.7,0.001]
[1764554561520,0.35026635,2852.4,2851.8,0.1742]
[1764554561667,0.35026635,2852.4,2851.7,0.001]
[1764554561668,0.35026635,2852.7,2852.3,0.1742]
[1764554562078,0.82516635,2852.7,2851.7,0.1752]
[1764554562499,0.224,2852.8,2851.8,0.405504]
[1764554562669,0.002,2853.1,2852.7,0.1742]
[1764554562670,3.50699615,2853.1,2852.7,0.1742]
[1764554562871,0.35289962,2853.1,2852.7,0.1742]
[1764554563099,0.4769,2853.1,2852.4,0.1742]
[1764554563283,0.35026635,2852.8,2851.9,0.579704]
[1764554563488,7.83711001,2853.1,2852.0,0.1742]
[1764554563906,0.72559411,2853.0,2852.0,0.1742]
[1764554564598,0.1934,2852.9,2852.0,0.1742]
[1764554564806,0.72559411,2853.0,2852.0,0.1742]
[1764554565395,3.50520522,2852.9,2852.1,3.50618842]
[1764554565693,3.50520522,2852.9,2852.2,0.36803884]
[1764554566278,3.69860522,2852.9,2852.2,0.36803884]
[1764554567400,7.20381044,2852.9,2852.2,0.36803884]
[1764554567589,7.55407679,2852.9,2852.0,3.68046026]
[1764554568193,4.04887157,2852.9,2852.0,3.68046026]
[1764554568375,0.72559411,2852.9,2852.1,0.1742]
[1764554568573,0.72559411,2853.0,2852.8,0.1742]
[1764554568776,0.226,2853.1,2852.9,0.1742]
[1764554568979,0.72559411,2853.0,2852.9,0.1742]
[1764554569377,0.002,2853.1,2852.9,0.1742]
[1764554569791,0.002,2853.1,2852.5,0.1742]
[1764554570012,0.002,2853.1,2852.6,0.36799534]
[1764554571407,0.002,2853.1,2852.5,3.67981819]
[1764554572510,0.002,2853.1,2852.5,0.1742]
[1764554573109,0.002,2853.1,2852.3,3.72989038]
[1764554573476,0.82846635,2853.1,2852.2,0.1742]
[1764554573680,7.01016472,2853.0,2852.3,0.25805942]
[1764554573909,0.82846635,2853.1,2852.3,3.93483782]
[1764554574217,7.83840107,2853.1,2852.3,4.10903782]
[1764554574875,7.01193472,2853.1,2852.4,0.1742]
[1764554575080,7.01193472,2853.1,2852.5,0.03505696]
[1764554575506,3.50695951,2853.1,2853.0,0.1742]
[1764554575815,0.002,2853.1,2853.0,0.1742]
[1764554576004,0.002,2853.1,2852.6,0.1742]
[1764554576198,0.002,2853.1,2853.0,0.1742]
[1764554576603,0.002,2853.1,2852.7,0.0350545]
[1764554576922,0.002,2853.1,2853.0,0.1742]
[1764554577419,0.002,2853.1,2853.0,0.3484]
[1764554578183,0.002,2853.1,2853.0,3.85348236]
[1764554578380,0.002,2853.1,2853.0,19.54268238]
[1764554578594,0.002,2853.1,2853.0,19.19168238]
[1764554578801,0.002,2853.1,2853.0,19.07544838]
[1764554579916,0.002,2853.7,2853.4,0.579704]
[1764554580083,0.002,2853.7,2853.6,0.930704]
[1764554580283,0.002,2853.7,2853.6,1.50059447]
[1764554580484,0.002,2853.7,2853.6,0.753904]
[1764554580814,0.002,2853.7,2853.6,1.47949811]
[1764554581024,0.002,2854.4,2853.7,0.405504]
[1764554581252,0.002,2854.4,2853.7,16.877991]
[1764554581389,0.002,2854.4,2854.2,0.351]
[1764554581715,0.002,2854.4,2854.3,0.976904]
[1764554581913,0.002,2854.4,2854.3,4.65458996]
[1764554582117,0.002,2854.4,2854.3,5.85650982]
[1764554582445,0.002,2854.4,2854.3,1.42231986]
[1764554582729,0.002,2854.4,2854.3,4.65458996]
[1764554583024,0.00014414,2854.7,2854.6,0.1742]
[1764554583730,0.00014414,2854.7,2854.6,0.3484]
[1764554584036,0.00014414,2854.7,2854.6,4.25702177]
[1764554584191,0.00014414,2854.7,2854.6,4.48002177]
[1764554584533,0.00014414,2854.7,2854.6,5.27834841]
[1764554585124,0.00014414,2854.7,2854.6,1.19552664]
[1764554585301,0.00014414,2854.7,2854.6,3.90031777]
[1764554585992,0.00014414,2854.7,2854.6,4.07451777]
[1764554586188,0.00014414,2854.7,2854.3,0.1742]
[1764554586430,0.00014414,2854.7,2854.6,0.1742]
[1764554587121,0.00014414,2854.7,2854.6,1.104904]
[1764554587294,0.00014414,2854.7,2854.6,0.753904]
[1764554587927,0.00014414,2854.7,2854.6,9.90264788]
[1764554588131,0.00014414,2854.7,2854.6,11.3380965]
[1764554588510,0.00014414,2854.7,2854.6,10.9870965]
[1764554588820,0.00014414,2854.7,2854.6,11.3380965]
[1764554589028,0.00014414,2854.7,2854.6,10.9870965]
[1764554589242,0.00014414,2854.7,2854.6,28.9021865]
[1764554589396,0.00014414,2854.7,2854.6,17.1444545]
[1764554589801,0.00014414,2854.7,2854.6,10.6190645]
[1764554589994,0.00014414,2854.7,2854.6,23.1532355]
[1764554590231,0.002,2855.0,2854.6,23.1532355]
[1764554590232,0.002,2855.0,2854.7,1.13109811]
[1764554590435,0.002,2855.3,2855.2,0.756504]
[1764554590602,0.4762,2856.6,2855.5,0.405504]
[1764554590801,0.4762,2856.6,2855.2,1.70249811]
[1764554590802,0.4762,2856.6,2855.8,0.405504]
[1764554591118,0.4762,2856.6,2855.9,0.223]
[1764554591633,0.35226635,2856.7,2856.0,0.351]
[1764554591634,0.002,2856.7,2856.0,0.351]
[1764554591796,0.002,2856.7,2855.9,0.223]
[1764554591998,0.002,2856.7,2856.1,3.50127796]
[1764554592204,0.002,2856.7,2856.2,0.3675478]
[1764554592823,0.002,2856.7,2856.2,0.5417478]
[1764554593097,0.002,2856.7,2856.3,0.223]
[1764554593926,0.002,2856.7,2856.4,3.50091023]
[1764554594094,0.002,2856.7,2856.3,0.223]
[1764554594296,0.002,2856.7,2856.3,4.13318137]
[1764554594725,0.4782,2856.7,2856.3,0.63218218]
[1764554594936,0.4791,2856.4,2856.3,0.223]
[1764554595116,0.4782,2856.7,2856.3,0.223]
[1764554595531,0.4791,2856.4,2856.0,0.223]
[1764554595837,0.4791,2856.4,2855.2,0.1742]
[1764554595838,0.4791,2856.4,2855.0,0.71643508]
[1764554596044,0.4791,2856.4,2855.3,0.351]
[1764554596248,4.45623044,2856.4,2855.3,0.351]
[1764554596549,4.45628224,2856.4,2855.4,0.20922136]
[1764554596744,0.4762,2856.3,2855.5,0.223]
[1764554596916,0.4762,2856.3,2855.1,7.18183497]
[1764554596917,0.4762,2856.3,2855.1,3.67933068]
[1764554597116,1.27192645,2856.3,2855.2,0.59093307]
[1764554597342,1.27192645,2856.3,2855.3,0.223]
[1764554597551,0.4762,2856.2,2855.3,0.223]
[1764554597745,0.82646635,2856.2,2854.6,1.43544862]
[1764554597949,0.72559411,2856.0,2854.7,3.50299506]
[1764554598248,0.35026635,2855.7,2854.8,0.71684437]
[1764554598619,0.4762,2855.6,2854.8,0.71684437]
[1764554598816,0.4762,2855.6,2854.9,0.405504]
[1764554599143,0.4762,2855.6,2854.8,0.71684437]
[1764554599144,0.4762,2855.6,2854.8,0.49384437]
[1764554599346,0.6781,2854.9,2854.3,4.36540298]
[1764554599551,0.6781,2854.9,2854.3,0.86192763]
[1764554599719,0.6781,2854.9,2853.4,8.57655545]
[1764554599720,0.4791,2854.4,2853.9,0.1233]